Body Name,Body,Service Division,Expense Type,Date Paid,Transaction Ref,Invoice Amount,Supplier Name,,
South Holland District Council,http://statistics.data.gov.uk/id/local-authority/32UF,Corporate,Payroll - Unison,06/01/2022,30009855,923.75 ,Unison,,
South Holland District Council,http://statistics.data.gov.uk/id/local-authority/32UF,Corporate,Payroll - Unison,01/02/2022,30011164,923.75 ,Unison,,
South Holland District Council,http://statistics.data.gov.uk/id/local-authority/32UF,Asset and Property,Buildings Maintenance - Programmed,11/01/2022,30009792,530.66 ,H20 Nationwide Limited,,
South Holland District Council,http://statistics.data.gov.uk/id/local-authority/32UF,Asset and Property,Buildings Maintenance - Programmed,11/01/2022,30009866,"1,848.00 ",H20 Nationwide Limited,,
South Holland District Council,http://statistics.data.gov.uk/id/local-authority/32UF,Asset and Property,Buildings Maintenance - Programmed,11/01/2022,30010309,"3,025.00 ",Oglesby and Limb Ltd,,
South Holland District Council,http://statistics.data.gov.uk/id/local-authority/32UF,Asset and Property,Buildings Maintenance - Programmed,13/01/2022,30010365,"6,649.90 ",Glen Farrow UK Ltd,,
South Holland District Council,http://statistics.data.gov.uk/id/local-authority/32UF,Asset and Property,Buildings Maintenance - Programmed,18/01/2022,30010423,"1,069.50 ",Glen Farrow UK Ltd,,
South Holland District Council,http://statistics.data.gov.uk/id/local-authority/32UF,Asset and Property,Buildings Maintenance - Programmed,18/01/2022,30010670,"1,259.42 ",Ian Brown Electrical Engineers Ltd,,
South Holland District Council,http://statistics.data.gov.uk/id/local-authority/32UF,Asset and Property,Buildings Maintenance - Programmed,01/02/2022,30011177,"2,280.00 ",Tyrrell Contractors Ltd,,
South Holland District Council,http://statistics.data.gov.uk/id/local-authority/32UF,Asset and Property,Buildings Maintenance - Responsive,11/01/2022,30009880,821.95 ,Ian Brown Electrical Engineers Ltd,,
South Holland District Council,http://statistics.data.gov.uk/id/local-authority/32UF,Asset and Property,Buildings Maintenance - Responsive,11/01/2022,30009881,973.00 ,Spalding Air Conditioning Services Ltd,,
South Holland District Council,http://statistics.data.gov.uk/id/local-authority/32UF,Asset and Property,Buildings Maintenance - Responsive,11/01/2022,30010033,630.89 ,GBSG Ltd,,
South Holland District Council,http://statistics.data.gov.uk/id/local-authority/32UF,Asset and Property,Buildings Maintenance - Responsive,20/01/2022,30010412,"1,190.40 ",GBSG Ltd,,
South Holland District Council,http://statistics.data.gov.uk/id/local-authority/32UF,Asset and Property,Buildings Maintenance - Responsive,27/01/2022,30011127,"1,161.25 ",Citrus Electrical Ltd,,
South Holland District Council,http://statistics.data.gov.uk/id/local-authority/32UF,Asset and Property,Buildings Maintenance - Responsive,27/01/2022,30011129,833.86 ,Citrus Electrical Ltd,,
South Holland District Council,http://statistics.data.gov.uk/id/local-authority/32UF,Asset and Property,Buildings Maintenance - Responsive,27/01/2022,30011132,684.37 ,Citrus Electrical Ltd,,
South Holland District Council,http://statistics.data.gov.uk/id/local-authority/32UF,Asset and Property,Buildings Maintenance - Responsive,01/02/2022,30011140,"3,950.00 ",D Harrison,,
South Holland District Council,http://statistics.data.gov.uk/id/local-authority/32UF,Asset and Property,Buildings Maintenance - Responsive,01/02/2022,30011180,"5,930.00 ",Tyrrell Contractors Ltd,,
South Holland District Council,http://statistics.data.gov.uk/id/local-authority/32UF,Asset and Property,Buildings Maintenance - Responsive,01/02/2022,30011184,674.83 ,Citrus Electrical Ltd,,
South Holland District Council,http://statistics.data.gov.uk/id/local-authority/32UF,Asset and Property,Buildings Maintenance - Responsive,01/02/2022,30011201,423.78 ,J L Phillips Renewable Energy Ltd,,
South Holland District Council,http://statistics.data.gov.uk/id/local-authority/32UF,Asset and Property,Buildings Maintenance - Responsive,01/02/2022,30011232,"2,000.00 ",Glen Farrow UK Ltd,,
South Holland District Council,http://statistics.data.gov.uk/id/local-authority/32UF,Asset and Property,Electricity,13/01/2022,30010358,"8,598.42 ",Total Energies,,
South Holland District Council,http://statistics.data.gov.uk/id/local-authority/32UF,Asset and Property,Electricity,18/01/2022,30010528,"4,583.27 ",Total Energies,,
South Holland District Council,http://statistics.data.gov.uk/id/local-authority/32UF,Asset and Property,Electricity,18/01/2022,30010653,"4,367.58 ",Total Energies,,
South Holland District Council,http://statistics.data.gov.uk/id/local-authority/32UF,Asset and Property,Furniture and Equipment,20/01/2022,30010429,"5,647.95 ",E.ON Energy Solutions Ltd,,
South Holland District Council,http://statistics.data.gov.uk/id/local-authority/32UF,Asset and Property,Gas,13/01/2022,30010448,"1,187.70 ",Espo Gas and Electricity,,
South Holland District Council,http://statistics.data.gov.uk/id/local-authority/32UF,Asset and Property,Gas,20/01/2022,30010865,"1,451.14 ",Espo Gas and Electricity,,
South Holland District Council,http://statistics.data.gov.uk/id/local-authority/32UF,Asset and Property,Gas,15/02/2022,30011038,"1,637.17 ",Espo Gas and Electricity,,
South Holland District Council,http://statistics.data.gov.uk/id/local-authority/32UF,Asset and Property,Professional and Contractors Fees,25/01/2022,30010136,"3,750.00 ",NPS Peterborough Ltd,,
South Holland District Council,http://statistics.data.gov.uk/id/local-authority/32UF,Building Control,Advertising - Events,11/01/2022,30009931,530.00 ,Giftfinder Ltd,,
South Holland District Council,http://statistics.data.gov.uk/id/local-authority/32UF,Building Control,Professional and Contractors Fees,04/01/2022,30009748,"1,963.38 ",Lincolnshire County Council,,
South Holland District Council,http://statistics.data.gov.uk/id/local-authority/32UF,Building Control,Professional and Contractors Fees,11/01/2022,30010232,"3,036.09 ",Lincolnshire County Council,,
South Holland District Council,http://statistics.data.gov.uk/id/local-authority/32UF,Building Control,Professional and Contractors Fees,13/01/2022,30010539,"2,850.00 ",Ocella Ltd,,
South Holland District Council,http://statistics.data.gov.uk/id/local-authority/32UF,Building Control,Professional and Contractors Fees,27/01/2022,30010565,"2,230.00 ",Navitas EAS,,
South Holland District Council,http://statistics.data.gov.uk/id/local-authority/32UF,Building Control,Professional and Contractors Fees,10/02/2022,30010916,455.00 ,Barlings KWA Ltd,,
South Holland District Council,http://statistics.data.gov.uk/id/local-authority/32UF,Building Control,Professional and Contractors Fees,20/01/2022,30010918,"1,543.43 ",Lincolnshire County Council,,
South Holland District Council,http://statistics.data.gov.uk/id/local-authority/32UF,Chief Executive,Agency Staff,11/01/2022,30009735,"8,550.00 ",Penna PLC,,
South Holland District Council,http://statistics.data.gov.uk/id/local-authority/32UF,Chief Executive,Shared Management,11/01/2022,30009848,"13,030.34 ",Breckland Council,,
South Holland District Council,http://statistics.data.gov.uk/id/local-authority/32UF,Community Development,Buildings Maintenance - Responsive,01/02/2022,30011232,"1,669.80 ",Glen Farrow UK Ltd,,
South Holland District Council,http://statistics.data.gov.uk/id/local-authority/32UF,Community Development,Computer Hardware Maintenance,27/01/2022,30010823,849.32 ,Spektrix Ltd,,
South Holland District Council,http://statistics.data.gov.uk/id/local-authority/32UF,Community Development,Electricity,11/01/2022,30009977,"1,783.11 ",Total Energies,,
South Holland District Council,http://statistics.data.gov.uk/id/local-authority/32UF,Community Development,Electricity,18/01/2022,30010527,"3,149.39 ",Total Energies,,
South Holland District Council,http://statistics.data.gov.uk/id/local-authority/32UF,Community Development,Furniture and Equipment,10/02/2022,30010878,640.00 ,Hands Free Computing Limited,,
South Holland District Council,http://statistics.data.gov.uk/id/local-authority/32UF,Community Development,Gas,18/01/2022,30010449,728.37 ,Espo Gas and Electricity,,
South Holland District Council,http://statistics.data.gov.uk/id/local-authority/32UF,Community Development,Gas,20/01/2022,30010870,483.88 ,Espo Gas and Electricity,,
South Holland District Council,http://statistics.data.gov.uk/id/local-authority/32UF,Community Development,Gas,15/02/2022,30011037,586.45 ,Espo Gas and Electricity,,
South Holland District Council,http://statistics.data.gov.uk/id/local-authority/32UF,Community Development,Other Income,18/01/2022,30010241,"-1,612.80 ",Polka Dot Dance Academy,,
South Holland District Council,http://statistics.data.gov.uk/id/local-authority/32UF,Community Development,Other Miscellaneous Expenses,11/01/2022,30009948,260.00 ,Popcorn Media,,
South Holland District Council,http://statistics.data.gov.uk/id/local-authority/32UF,Community Development,Other Miscellaneous Expenses,18/01/2022,30010567,"15,927.00 ",Parkwood Leisure Limited,,
South Holland District Council,http://statistics.data.gov.uk/id/local-authority/32UF,Community Development,Other Miscellaneous Expenses,20/01/2022,30010908,"17,092.00 ",Parkwood Leisure Limited,,
South Holland District Council,http://statistics.data.gov.uk/id/local-authority/32UF,Community Development,Other Miscellaneous Expenses,20/01/2022,30010925,"9,465.00 ",Parkwood Leisure Limited,,
South Holland District Council,http://statistics.data.gov.uk/id/local-authority/32UF,Community Development,Other Miscellaneous Expenses,27/01/2022,30010997,"1,352.80 ",Enterprise rent-a-car,,
South Holland District Council,http://statistics.data.gov.uk/id/local-authority/32UF,Community Development,Payments to Bodies in Respect of Income Collected,18/01/2022,30010241,"7,208.00 ",Polka Dot Dance Academy,,
South Holland District Council,http://statistics.data.gov.uk/id/local-authority/32UF,Community Development,Performers and Entertainers Fees,18/01/2022,30008858,"4,478.04 ",Bound & Gagged Comedy Ltd,,
South Holland District Council,http://statistics.data.gov.uk/id/local-authority/32UF,Community Development,Professional and Contractors Fees,11/01/2022,30009958,840.00 ,Agenda Cleaning Services,,
South Holland District Council,http://statistics.data.gov.uk/id/local-authority/32UF,Community Development,Professional and Contractors Fees,18/01/2022,30010697,840.00 ,Agenda Cleaning Services,,
South Holland District Council,http://statistics.data.gov.uk/id/local-authority/32UF,Community Development,Professional and Contractors Fees,18/01/2022,30010698,840.00 ,Agenda Cleaning Services,,
South Holland District Council,http://statistics.data.gov.uk/id/local-authority/32UF,Community Development,Professional and Contractors Fees,01/02/2022,30011205,"2,000.00 ",Max Associates Holdings Ltd,,
South Holland District Council,http://statistics.data.gov.uk/id/local-authority/32UF,Community Development,Professional and Contractors Fees,01/02/2022,30011206,"4,000.00 ",Max Associates Holdings Ltd,,
South Holland District Council,http://statistics.data.gov.uk/id/local-authority/32UF,Community Development,Purchase of Goods for Resale,11/01/2022,30010282,739.53 ,Bidfood,,
South Holland District Council,http://statistics.data.gov.uk/id/local-authority/32UF,Community Development,Water and Sewerage Charges,04/01/2022,30009473,"3,274.89 ",Wave,,
South Holland District Council,http://statistics.data.gov.uk/id/local-authority/32UF,Democratic Services,Legal Fees Non-Routine,27/01/2022,30010561,"1,880.85 ",Lincolnshire County Council,,
South Holland District Council,http://statistics.data.gov.uk/id/local-authority/32UF,Democratic Services,Other Miscellaneous Expenses,06/01/2022,30009781,"3,134.00 ",Popcorn Media,,
South Holland District Council,http://statistics.data.gov.uk/id/local-authority/32UF,Democratic Services,Other Miscellaneous Expenses,25/01/2022,30010951,800.00 ,AEDdonate,,
South Holland District Council,http://statistics.data.gov.uk/id/local-authority/32UF,Democratic Services,Other Miscellaneous Expenses,25/01/2022,30010952,600.00 ,Deeping St Nicholas Gardening Club,,
South Holland District Council,http://statistics.data.gov.uk/id/local-authority/32UF,Democratic Services,Other Miscellaneous Expenses,27/01/2022,30011119,"3,500.00 ",Holb Regeneration Comm Interest Company,,
South Holland District Council,http://statistics.data.gov.uk/id/local-authority/32UF,Democratic Services,Postages,27/01/2022,30010369,155.00 ,Civica Election Services,,
South Holland District Council,http://statistics.data.gov.uk/id/local-authority/32UF,Democratic Services,Postages,03/02/2022,30010569,426.75 ,Civica Election Services,,
South Holland District Council,http://statistics.data.gov.uk/id/local-authority/32UF,Democratic Services,Stationery,27/01/2022,30010369,422.35 ,Civica Election Services,,
South Holland District Council,http://statistics.data.gov.uk/id/local-authority/32UF,Democratic Services,Stationery,03/02/2022,30010569,415.46 ,Civica Election Services,,
South Holland District Council,http://statistics.data.gov.uk/id/local-authority/32UF,Democratic Services,Stationery,08/02/2022,30010691,"1,262.37 ",Civica Election Services,,
South Holland District Council,http://statistics.data.gov.uk/id/local-authority/32UF,Economic Development,Grants and Contributions to Outside Bodies - No Service Received,06/01/2022,30009794,"6,650.00 ",Kirby and Wells Ltd T A Kawstore,,
South Holland District Council,http://statistics.data.gov.uk/id/local-authority/32UF,Economic Development,Grants and Contributions to Outside Bodies - No Service Received,06/01/2022,30009795,"7,776.00 ",GTS Security Ltd,,
South Holland District Council,http://statistics.data.gov.uk/id/local-authority/32UF,Economic Development,Grants and Contributions to Outside Bodies - No Service Received,06/01/2022,30009851,"1,001.00 ",Sign Design Services Ltd,,
South Holland District Council,http://statistics.data.gov.uk/id/local-authority/32UF,Economic Development,Grants and Contributions to Outside Bodies - No Service Received,06/01/2022,30009852,"6,500.00 ",ML Smith & Sons Ltd,,
South Holland District Council,http://statistics.data.gov.uk/id/local-authority/32UF,Economic Development,Grants and Contributions to Outside Bodies - No Service Received,11/01/2022,30009928,"19,917.09 ",Platinum Sales and Distribution Ltd,,
South Holland District Council,http://statistics.data.gov.uk/id/local-authority/32UF,Economic Development,Grants and Contributions to Outside Bodies - No Service Received,11/01/2022,30009954,"7,000.00 ",GiftsOnline4U,,
South Holland District Council,http://statistics.data.gov.uk/id/local-authority/32UF,Economic Development,Grants and Contributions to Outside Bodies - No Service Received,11/01/2022,30010330,"8,242.50 ",Spalding Air Conditioning Services Ltd,,
South Holland District Council,http://statistics.data.gov.uk/id/local-authority/32UF,Economic Development,Grants and Contributions to Outside Bodies - No Service Received,13/01/2022,30010427,"12,655.00 ",TL Electrical Engineering Ltd,,
South Holland District Council,http://statistics.data.gov.uk/id/local-authority/32UF,Economic Development,Grants and Contributions to Outside Bodies - No Service Received,13/01/2022,30010434,"4,081.00 ",The Farm Kitchen Ltd,,
South Holland District Council,http://statistics.data.gov.uk/id/local-authority/32UF,Economic Development,Grants and Contributions to Outside Bodies - No Service Received,18/01/2022,30010658,"2,000.00 ",Green Footprints UK Ltd,,
South Holland District Council,http://statistics.data.gov.uk/id/local-authority/32UF,Economic Development,Grants and Contributions to Outside Bodies - No Service Received,25/01/2022,30011087,"6,650.00 ",Hendry Electrical Contractors Ltd,,
South Holland District Council,http://statistics.data.gov.uk/id/local-authority/32UF,Economic Development,Grants and Contributions to Outside Bodies - No Service Received,27/01/2022,30011137,"2,222.00 ",L R Signs & Designs Ltd,,
South Holland District Council,http://statistics.data.gov.uk/id/local-authority/32UF,Economic Development,Grants and Contributions to Outside Bodies - No Service Received,03/02/2022,30011193,"1,831.00 ",Tiger Tots Messy Play,,
South Holland District Council,http://statistics.data.gov.uk/id/local-authority/32UF,Economic Development,Professional and Contractors Fees,11/01/2022,30009721,650.00 ,Michael Page Internat Recruitment Ltd,,
South Holland District Council,http://statistics.data.gov.uk/id/local-authority/32UF,Economic Development,Professional and Contractors Fees,13/01/2022,30010323,"4,310.00 ",Kudos Project Management,,
South Holland District Council,http://statistics.data.gov.uk/id/local-authority/32UF,Economic Development,Professional and Contractors Fees,11/01/2022,30010331,575.00 ,Michael Page Internat Recruitment Ltd,,
South Holland District Council,http://statistics.data.gov.uk/id/local-authority/32UF,Economic Development,Professional and Contractors Fees,18/01/2022,30010802,"1,471.83 ",Social Change UK,,
South Holland District Council,http://statistics.data.gov.uk/id/local-authority/32UF,Economic Development,Professional and Contractors Fees,27/01/2022,30010839,425.00 ,Michael Page Internat Recruitment Ltd,,
South Holland District Council,http://statistics.data.gov.uk/id/local-authority/32UF,Economic Development,Professional and Contractors Fees,15/02/2022,30011065,"5,600.00 ",David Ubaka Placemakers (D.U.P.),,
South Holland District Council,http://statistics.data.gov.uk/id/local-authority/32UF,Economic Development,Professional and Contractors Fees,01/02/2022,30011204,525.00 ,Michael Page Internat Recruitment Ltd,,
South Holland District Council,http://statistics.data.gov.uk/id/local-authority/32UF,Environmental Services,Agency Staff,11/01/2022,30009749,"4,197.56 ",Essential Staffing Ltd,,
South Holland District Council,http://statistics.data.gov.uk/id/local-authority/32UF,Environmental Services,Agency Staff,04/01/2022,30009753,"3,559.10 ",Encore Personnel Services Ltd,,
South Holland District Council,http://statistics.data.gov.uk/id/local-authority/32UF,Environmental Services,Agency Staff,20/01/2022,30009756,479.60 ,Quality Service Recruitment Ltd,,
South Holland District Council,http://statistics.data.gov.uk/id/local-authority/32UF,Environmental Services,Agency Staff,06/01/2022,30009757,592.00 ,Steves Garden and Household Services,,
South Holland District Council,http://statistics.data.gov.uk/id/local-authority/32UF,Environmental Services,Agency Staff,04/01/2022,30009758,"1,061.90 ",Capital Outsourcing Group Food,,
South Holland District Council,http://statistics.data.gov.uk/id/local-authority/32UF,Environmental Services,Agency Staff,27/01/2022,30009760,900.80 ,Quality Service Recruitment Ltd,,
South Holland District Council,http://statistics.data.gov.uk/id/local-authority/32UF,Environmental Services,Agency Staff,06/01/2022,30009869,"3,760.18 ",The Best Connection Group Ltd,,
South Holland District Council,http://statistics.data.gov.uk/id/local-authority/32UF,Environmental Services,Agency Staff,06/01/2022,30009870,"3,379.22 ",The Best Connection Group Ltd,,
South Holland District Council,http://statistics.data.gov.uk/id/local-authority/32UF,Environmental Services,Agency Staff,06/01/2022,30009872,"4,053.52 ",Encore Personnel Services Ltd,,
South Holland District Council,http://statistics.data.gov.uk/id/local-authority/32UF,Environmental Services,Agency Staff,06/01/2022,30009890,"1,843.39 ",Blue Arrow Ltd,,
South Holland District Council,http://statistics.data.gov.uk/id/local-authority/32UF,Environmental Services,Agency Staff,11/01/2022,30009895,"1,060.00 ",Questech Recruitment Limited,,
South Holland District Council,http://statistics.data.gov.uk/id/local-authority/32UF,Environmental Services,Agency Staff,18/01/2022,30009995,"1,119.63 ",Questech Recruitment Limited,,
South Holland District Council,http://statistics.data.gov.uk/id/local-authority/32UF,Environmental Services,Agency Staff,18/01/2022,30010233,"1,811.87 ",Blue Arrow Ltd,,
South Holland District Council,http://statistics.data.gov.uk/id/local-authority/32UF,Environmental Services,Agency Staff,11/01/2022,30010235,"4,538.97 ",Essential Staffing Ltd,,
South Holland District Council,http://statistics.data.gov.uk/id/local-authority/32UF,Environmental Services,Agency Staff,11/01/2022,30010242,"4,623.47 ",Essential Staffing Ltd,,
South Holland District Council,http://statistics.data.gov.uk/id/local-authority/32UF,Environmental Services,Agency Staff,11/01/2022,30010255,"3,580.06 ",The Best Connection Group Ltd,,
South Holland District Council,http://statistics.data.gov.uk/id/local-authority/32UF,Environmental Services,Agency Staff,11/01/2022,30010270,"3,135.32 ",The Best Connection Group Ltd,,
South Holland District Council,http://statistics.data.gov.uk/id/local-authority/32UF,Environmental Services,Agency Staff,11/01/2022,30010273,"3,095.29 ",The Best Connection Group Ltd,,
South Holland District Council,http://statistics.data.gov.uk/id/local-authority/32UF,Environmental Services,Agency Staff,11/01/2022,30010274,659.72 ,247 Personnel Ltd,,
South Holland District Council,http://statistics.data.gov.uk/id/local-authority/32UF,Environmental Services,Agency Staff,25/01/2022,30010275,"1,138.58 ",Blue Arrow Ltd,,
South Holland District Council,http://statistics.data.gov.uk/id/local-authority/32UF,Environmental Services,Agency Staff,11/01/2022,30010276,"3,195.86 ",The Best Connection Group Ltd,,
South Holland District Council,http://statistics.data.gov.uk/id/local-authority/32UF,Environmental Services,Agency Staff,11/01/2022,30010279,"3,346.81 ",Encore Personnel Services Ltd,,
South Holland District Council,http://statistics.data.gov.uk/id/local-authority/32UF,Environmental Services,Agency Staff,03/02/2022,30010281,836.40 ,Quality Service Recruitment Ltd,,
South Holland District Council,http://statistics.data.gov.uk/id/local-authority/32UF,Environmental Services,Agency Staff,11/01/2022,30010283,763.25 ,Capital Outsourcing Group Food,,
South Holland District Council,http://statistics.data.gov.uk/id/local-authority/32UF,Environmental Services,Agency Staff,11/01/2022,30010315,"2,000.18 ",247 Personnel Ltd,,
South Holland District Council,http://statistics.data.gov.uk/id/local-authority/32UF,Environmental Services,Agency Staff,11/01/2022,30010356,"9,430.78 ",NJW Services,,
South Holland District Council,http://statistics.data.gov.uk/id/local-authority/32UF,Environmental Services,Agency Staff,18/01/2022,30010430,"4,599.41 ",Essential Staffing Ltd,,
South Holland District Council,http://statistics.data.gov.uk/id/local-authority/32UF,Environmental Services,Agency Staff,13/01/2022,30010431,710.84 ,Blue Arrow Ltd,,
South Holland District Council,http://statistics.data.gov.uk/id/local-authority/32UF,Environmental Services,Agency Staff,13/01/2022,30010433,454.41 ,Integrity Plus Ltd,,
South Holland District Council,http://statistics.data.gov.uk/id/local-authority/32UF,Environmental Services,Agency Staff,13/01/2022,30010459,"2,325.77 ",Encore Personnel Services Ltd,,
South Holland District Council,http://statistics.data.gov.uk/id/local-authority/32UF,Environmental Services,Agency Staff,13/01/2022,30010461,"2,176.09 ",Integrity Plus Ltd,,
South Holland District Council,http://statistics.data.gov.uk/id/local-authority/32UF,Environmental Services,Agency Staff,13/01/2022,30010472,"1,662.47 ",The Best Connection Group Ltd,,
South Holland District Council,http://statistics.data.gov.uk/id/local-authority/32UF,Environmental Services,Agency Staff,13/01/2022,30010473,"2,631.14 ",The Best Connection Group Ltd,,
South Holland District Council,http://statistics.data.gov.uk/id/local-authority/32UF,Environmental Services,Agency Staff,20/01/2022,30010474,955.20 ,Steves Garden and Household Services,,
South Holland District Council,http://statistics.data.gov.uk/id/local-authority/32UF,Environmental Services,Agency Staff,13/01/2022,30010479,864.42 ,247 Personnel Ltd,,
South Holland District Council,http://statistics.data.gov.uk/id/local-authority/32UF,Environmental Services,Agency Staff,13/01/2022,30010480,638.21 ,247 Personnel Ltd,,
South Holland District Council,http://statistics.data.gov.uk/id/local-authority/32UF,Environmental Services,Agency Staff,13/01/2022,30010492,"3,275.62 ",247 Personnel Ltd,,
South Holland District Council,http://statistics.data.gov.uk/id/local-authority/32UF,Environmental Services,Agency Staff,27/01/2022,30010513,"1,060.00 ",Questech Recruitment Limited,,
South Holland District Council,http://statistics.data.gov.uk/id/local-authority/32UF,Environmental Services,Agency Staff,03/02/2022,30010514,768.50 ,Questech Recruitment Limited,,
South Holland District Council,http://statistics.data.gov.uk/id/local-authority/32UF,Environmental Services,Agency Staff,08/02/2022,30010804,"1,020.25 ",Questech Recruitment Limited,,
South Holland District Council,http://statistics.data.gov.uk/id/local-authority/32UF,Environmental Services,Agency Staff,10/02/2022,30010805,"1,124.80 ",Quality Service Recruitment Ltd,,
South Holland District Council,http://statistics.data.gov.uk/id/local-authority/32UF,Environmental Services,Agency Staff,08/02/2022,30010838,"1,771.64 ",Blue Arrow Ltd,,
South Holland District Council,http://statistics.data.gov.uk/id/local-authority/32UF,Environmental Services,Agency Staff,20/01/2022,30010880,"3,231.56 ",Encore Personnel Services Ltd,,
South Holland District Council,http://statistics.data.gov.uk/id/local-authority/32UF,Environmental Services,Agency Staff,20/01/2022,30010888,"6,421.89 ",Essential Staffing Ltd,,
South Holland District Council,http://statistics.data.gov.uk/id/local-authority/32UF,Environmental Services,Agency Staff,20/01/2022,30010890,"1,156.71 ",Integrity Plus Ltd,,
South Holland District Council,http://statistics.data.gov.uk/id/local-authority/32UF,Environmental Services,Agency Staff,20/01/2022,30010901,929.48 ,Integrity Plus Ltd,,
South Holland District Council,http://statistics.data.gov.uk/id/local-authority/32UF,Environmental Services,Agency Staff,20/01/2022,30010902,"1,724.72 ",Integrity Plus Ltd,,
South Holland District Council,http://statistics.data.gov.uk/id/local-authority/32UF,Environmental Services,Agency Staff,20/01/2022,30010903,"2,998.10 ",Integrity Plus Ltd,,
South Holland District Council,http://statistics.data.gov.uk/id/local-authority/32UF,Environmental Services,Agency Staff,20/01/2022,30010904,468.86 ,Integrity Plus Ltd,,
South Holland District Council,http://statistics.data.gov.uk/id/local-authority/32UF,Environmental Services,Agency Staff,20/01/2022,30010905,"3,421.49 ",Integrity Plus Ltd,,
South Holland District Council,http://statistics.data.gov.uk/id/local-authority/32UF,Environmental Services,Agency Staff,20/01/2022,30010906,995.75 ,247 Personnel Ltd,,
South Holland District Council,http://statistics.data.gov.uk/id/local-authority/32UF,Environmental Services,Agency Staff,20/01/2022,30010907,"1,387.31 ",247 Personnel Ltd,,
South Holland District Council,http://statistics.data.gov.uk/id/local-authority/32UF,Environmental Services,Agency Staff,27/01/2022,30010910,781.60 ,Steves Garden and Household Services,,
South Holland District Council,http://statistics.data.gov.uk/id/local-authority/32UF,Environmental Services,Agency Staff,20/01/2022,30010911,"5,459.85 ",The Best Connection Group Ltd,,
South Holland District Council,http://statistics.data.gov.uk/id/local-authority/32UF,Environmental Services,Agency Staff,20/01/2022,30010914,"3,979.27 ",The Best Connection Group Ltd,,
South Holland District Council,http://statistics.data.gov.uk/id/local-authority/32UF,Environmental Services,Agency Staff,20/01/2022,30010924,"6,253.87 ",Integrity Plus Ltd,,
South Holland District Council,http://statistics.data.gov.uk/id/local-authority/32UF,Environmental Services,Agency Staff,20/01/2022,30010926,"3,773.80 ",247 Personnel Ltd,,
South Holland District Council,http://statistics.data.gov.uk/id/local-authority/32UF,Environmental Services,Agency Staff,17/02/2022,30011095,"1,415.60 ",Quality Service Recruitment Ltd,,
South Holland District Council,http://statistics.data.gov.uk/id/local-authority/32UF,Environmental Services,Agency Staff,10/02/2022,30011097,"1,471.52 ",Capital Outsourcing Group Food,,
South Holland District Council,http://statistics.data.gov.uk/id/local-authority/32UF,Environmental Services,Agency Staff,25/01/2022,30011098,"1,797.01 ",Integrity Plus Ltd,,
South Holland District Council,http://statistics.data.gov.uk/id/local-authority/32UF,Environmental Services,Agency Staff,25/01/2022,30011099,"5,421.67 ",Integrity Plus Ltd,,
South Holland District Council,http://statistics.data.gov.uk/id/local-authority/32UF,Environmental Services,Agency Staff,25/01/2022,30011102,"3,004.03 ",Encore Personnel Services Ltd,,
South Holland District Council,http://statistics.data.gov.uk/id/local-authority/32UF,Environmental Services,Agency Staff,25/01/2022,30011110,"2,834.74 ",The Best Connection Group Ltd,,
South Holland District Council,http://statistics.data.gov.uk/id/local-authority/32UF,Environmental Services,Agency Staff,25/01/2022,30011111,"4,710.52 ",The Best Connection Group Ltd,,
South Holland District Council,http://statistics.data.gov.uk/id/local-authority/32UF,Environmental Services,Agency Staff,25/01/2022,30011112,"5,433.86 ",Essential Staffing Ltd,,
South Holland District Council,http://statistics.data.gov.uk/id/local-authority/32UF,Environmental Services,Agency Staff,27/01/2022,30011123,861.16 ,247 Personnel Ltd,,
South Holland District Council,http://statistics.data.gov.uk/id/local-authority/32UF,Environmental Services,Agency Staff,27/01/2022,30011124,"3,639.02 ",247 Personnel Ltd,,
South Holland District Council,http://statistics.data.gov.uk/id/local-authority/32UF,Environmental Services,Clothing Uniforms and Laundry,03/02/2022,30010628,503.88 ,Groundsman Tools Ltd,,
South Holland District Council,http://statistics.data.gov.uk/id/local-authority/32UF,Environmental Services,Commercial Vehicle Lease Payments (Less than 12 months),27/01/2022,30010408,"1,800.66 ",Go Plant Fleet Services,,
South Holland District Council,http://statistics.data.gov.uk/id/local-authority/32UF,Environmental Services,Commercial Vehicle Lease Payments (Less than 12 months),10/02/2022,30010813,700.00 ,Lincs Van Hire,,
South Holland District Council,http://statistics.data.gov.uk/id/local-authority/32UF,Environmental Services,Fuel and Oil,06/01/2022,30009878,"7,572.79 ",C H Jones Ltd,,
South Holland District Council,http://statistics.data.gov.uk/id/local-authority/32UF,Environmental Services,Fuel and Oil,11/01/2022,30010277,"5,795.54 ",C H Jones Ltd,,
South Holland District Council,http://statistics.data.gov.uk/id/local-authority/32UF,Environmental Services,Fuel and Oil,13/01/2022,30010477,"7,660.09 ",C H Jones Ltd,,
South Holland District Council,http://statistics.data.gov.uk/id/local-authority/32UF,Environmental Services,Fuel and Oil,20/01/2022,30010763,990.71 ,Witham Oil and Paint Ltd,,
South Holland District Council,http://statistics.data.gov.uk/id/local-authority/32UF,Environmental Services,Fuel and Oil,10/02/2022,30010767,960.00 ,Chemodex Limited,,
South Holland District Council,http://statistics.data.gov.uk/id/local-authority/32UF,Environmental Services,Fuel and Oil,20/01/2022,30010773,"2,579.60 ",WCF Chandlers,,
South Holland District Council,http://statistics.data.gov.uk/id/local-authority/32UF,Environmental Services,Fuel and Oil,20/01/2022,30010909,"8,669.32 ",C H Jones Ltd,,
South Holland District Council,http://statistics.data.gov.uk/id/local-authority/32UF,Environmental Services,Fuel and Oil,08/02/2022,30011202,469.42 ,Witham Oil and Paint Ltd,,
South Holland District Council,http://statistics.data.gov.uk/id/local-authority/32UF,Environmental Services,Furniture and Equipment,13/01/2022,30009896,575.00 ,Vision Techniques U K Ltd,,
South Holland District Council,http://statistics.data.gov.uk/id/local-authority/32UF,Environmental Services,Furniture and Equipment,06/01/2022,30009901,572.40 ,Rigby Taylor Limited,,
South Holland District Council,http://statistics.data.gov.uk/id/local-authority/32UF,Environmental Services,Furniture and Equipment,18/01/2022,30010278,450.00 ,Bryan Coupland Ltd,,
South Holland District Council,http://statistics.data.gov.uk/id/local-authority/32UF,Environmental Services,Furniture and Equipment,20/01/2022,30010872,"1,250.00 ",EMS-FP and S Ltd,,
South Holland District Council,http://statistics.data.gov.uk/id/local-authority/32UF,Environmental Services,Furniture and Equipment,03/02/2022,30011039,438.81 ,Burdens Group Ltd,,
South Holland District Council,http://statistics.data.gov.uk/id/local-authority/32UF,Environmental Services,Heating Oil,11/01/2022,30009835,"1,474.50 ",WCF Chandlers,,
South Holland District Council,http://statistics.data.gov.uk/id/local-authority/32UF,Environmental Services,Income Collected on Behalf of External Organisations,13/01/2022,30010482,"6,521.15 ",Broadgate Builders T/A Westlode Car Park,,
South Holland District Council,http://statistics.data.gov.uk/id/local-authority/32UF,Environmental Services,Materials and Consumables,13/01/2022,30009879,"5,539.08 ",Berry BPI Refuse,,
South Holland District Council,http://statistics.data.gov.uk/id/local-authority/32UF,Environmental Services,Materials and Consumables,06/01/2022,30009900,642.66 ,PERSONAL INFORMATION REDACTED,,
South Holland District Council,http://statistics.data.gov.uk/id/local-authority/32UF,Environmental Services,Materials and Consumables,20/01/2022,30009969,"2,298.30 ",Berry BPI Refuse,,
South Holland District Council,http://statistics.data.gov.uk/id/local-authority/32UF,Environmental Services,Materials and Consumables,03/02/2022,30010571,"4,105.59 ",Berry BPI Refuse,,
South Holland District Council,http://statistics.data.gov.uk/id/local-authority/32UF,Environmental Services,MOT and Plate,15/02/2022,30010857,945.00 ,Scania (Great Britain) Ltd,,
South Holland District Council,http://statistics.data.gov.uk/id/local-authority/32UF,Environmental Services,MOT and Plate,17/02/2022,30010991,461.50 ,Scania (Great Britain) Ltd,,
South Holland District Council,http://statistics.data.gov.uk/id/local-authority/32UF,Environmental Services,PCN Income,13/01/2022,30010475,"2,588.28 ",Broadgate Builders T/A Westlode Car Park,,
South Holland District Council,http://statistics.data.gov.uk/id/local-authority/32UF,Environmental Services,Professional and Contractors Fees,11/01/2022,30009863,"1,092.24 ",Lincolnshire County Council,,
South Holland District Council,http://statistics.data.gov.uk/id/local-authority/32UF,Environmental Services,Professional and Contractors Fees,06/01/2022,30009864,"1,220.75 ",Lincolnshire County Council,,
South Holland District Council,http://statistics.data.gov.uk/id/local-authority/32UF,Environmental Services,Professional and Contractors Fees,27/01/2022,30010373,883.14 ,Kings Armoured Security Services Ltd,,
South Holland District Council,http://statistics.data.gov.uk/id/local-authority/32UF,Environmental Services,Professional and Contractors Fees,13/01/2022,30010426,"2,346.96 ",GBSG Ltd,,
South Holland District Council,http://statistics.data.gov.uk/id/local-authority/32UF,Environmental Services,Professional and Contractors Fees,18/01/2022,30010685,575.00 ,Weaar,,
South Holland District Council,http://statistics.data.gov.uk/id/local-authority/32UF,Environmental Services,Professional and Contractors Fees,18/01/2022,30010686,"3,950.00 ",Weaar,,
South Holland District Council,http://statistics.data.gov.uk/id/local-authority/32UF,Environmental Services,Professional and Contractors Fees,18/01/2022,30010687,650.00 ,Weaar,,
South Holland District Council,http://statistics.data.gov.uk/id/local-authority/32UF,Environmental Services,Professional and Contractors Fees,18/01/2022,30010689,650.00 ,Weaar,,
South Holland District Council,http://statistics.data.gov.uk/id/local-authority/32UF,Environmental Services,Professional and Contractors Fees,27/01/2022,30010797,"1,155.88 ",Lincolnshire County Council,,
South Holland District Council,http://statistics.data.gov.uk/id/local-authority/32UF,Environmental Services,Professional and Contractors Fees,27/01/2022,30010798,804.42 ,Lincolnshire County Council,,
South Holland District Council,http://statistics.data.gov.uk/id/local-authority/32UF,Environmental Services,Professional and Contractors Fees,10/02/2022,30010998,850.00 ,Weaar,,
South Holland District Council,http://statistics.data.gov.uk/id/local-authority/32UF,Environmental Services,Professional and Contractors Fees,10/02/2022,30010999,650.00 ,Weaar,,
South Holland District Council,http://statistics.data.gov.uk/id/local-authority/32UF,Environmental Services,Workshop Parts,06/01/2022,30009891,417.06 ,Spalding Auto Electrical,,
South Holland District Council,http://statistics.data.gov.uk/id/local-authority/32UF,Environmental Services,Workshop Parts,13/01/2022,30009971,629.30 ,Fleet Factors Ltd,,
South Holland District Council,http://statistics.data.gov.uk/id/local-authority/32UF,Environmental Services,Workshop Parts,11/01/2022,30010327,758.00 ,S and M Springs,,
South Holland District Council,http://statistics.data.gov.uk/id/local-authority/32UF,Environmental Services,Workshop Parts,20/01/2022,30010328,"2,337.03 ",Fleet Factors Ltd,,
South Holland District Council,http://statistics.data.gov.uk/id/local-authority/32UF,Environmental Services,Workshop Parts,27/01/2022,30010329,637.68 ,Fleet Factors Ltd,,
South Holland District Council,http://statistics.data.gov.uk/id/local-authority/32UF,Environmental Services,Workshop Parts,13/01/2022,30010532,"1,178.00 ",Dennis Eagle,,
South Holland District Council,http://statistics.data.gov.uk/id/local-authority/32UF,Environmental Services,Workshop Parts,03/02/2022,30010833,"2,211.38 ",Fleet Factors Ltd,,
South Holland District Council,http://statistics.data.gov.uk/id/local-authority/32UF,Environmental Services,Workshop Parts,27/01/2022,30010931,"1,117.74 ",Dennis Eagle,,
South Holland District Council,http://statistics.data.gov.uk/id/local-authority/32UF,Environmental Services,Workshop Parts,25/01/2022,30011029,595.02 ,S and M Springs,,
South Holland District Council,http://statistics.data.gov.uk/id/local-authority/32UF,Finance,Grants and Contributions to Outside Bodies - No Service Received,25/01/2022,30011096,"20,000.00 ",Charis Grants Ltd,,
South Holland District Council,http://statistics.data.gov.uk/id/local-authority/32UF,Finance,Public Sector Partnership Services,25/01/2022,30010953,"257,205.75 ",Public Sector Partnership Services Ltd,,
South Holland District Council,http://statistics.data.gov.uk/id/local-authority/32UF,Housing,Agency Staff,04/01/2022,30009751,"1,110.00 ",Park Avenue Recruitment Ltd,,
South Holland District Council,http://statistics.data.gov.uk/id/local-authority/32UF,Housing,Agency Staff,04/01/2022,30009752,"1,110.00 ",Park Avenue Recruitment Ltd,,
South Holland District Council,http://statistics.data.gov.uk/id/local-authority/32UF,Housing,Agency Staff,13/01/2022,30009826,"5,969.00 ",Park Avenue Recruitment Ltd,,
South Holland District Council,http://statistics.data.gov.uk/id/local-authority/32UF,Housing,Agency Staff,11/01/2022,30009847,"5,868.00 ",Park Avenue Recruitment Ltd,,
South Holland District Council,http://statistics.data.gov.uk/id/local-authority/32UF,Housing,Agency Staff,06/01/2022,30009865,"3,219.00 ",Park Avenue Recruitment Ltd,,
South Holland District Council,http://statistics.data.gov.uk/id/local-authority/32UF,Housing,Agency Staff,18/01/2022,30010336,"1,749.00 ",Park Avenue Recruitment Ltd,,
South Holland District Council,http://statistics.data.gov.uk/id/local-authority/32UF,Housing,Agency Staff,18/01/2022,30010776,339.57 ,Integrity Plus Ltd,,
South Holland District Council,http://statistics.data.gov.uk/id/local-authority/32UF,Housing,Agency Staff,18/01/2022,30010778,296.45 ,Integrity Plus Ltd,,
South Holland District Council,http://statistics.data.gov.uk/id/local-authority/32UF,Housing,Agency Staff,25/01/2022,30010984,"5,723.00 ",Park Avenue Recruitment Ltd,,
South Holland District Council,http://statistics.data.gov.uk/id/local-authority/32UF,Housing,Agency Staff,25/01/2022,30010990,398.86 ,Integrity Plus Ltd,,
South Holland District Council,http://statistics.data.gov.uk/id/local-authority/32UF,Housing,Agency Staff,25/01/2022,30011044,"4,075.00 ",Park Avenue Recruitment Ltd,,
South Holland District Council,http://statistics.data.gov.uk/id/local-authority/32UF,Housing,Bed and Breakfast Accommodation (Homelessness Service),18/01/2022,30009961,888.89 ,The Mansion House Hotel,,
South Holland District Council,http://statistics.data.gov.uk/id/local-authority/32UF,Housing,Bed and Breakfast Accommodation (Homelessness Service),20/01/2022,30010034,"1,000.00 ",Anglia Motel,,
South Holland District Council,http://statistics.data.gov.uk/id/local-authority/32UF,Housing,Bed and Breakfast Accommodation (Homelessness Service),20/01/2022,30010036,875.00 ,Anglia Motel,,
South Holland District Council,http://statistics.data.gov.uk/id/local-authority/32UF,Housing,Bed and Breakfast Accommodation (Homelessness Service),20/01/2022,30010037,875.00 ,Anglia Motel,,
South Holland District Council,http://statistics.data.gov.uk/id/local-authority/32UF,Housing,Bed and Breakfast Accommodation (Homelessness Service),20/01/2022,30010038,875.00 ,Anglia Motel,,
South Holland District Council,http://statistics.data.gov.uk/id/local-authority/32UF,Housing,Bed and Breakfast Accommodation (Homelessness Service),20/01/2022,30010041,490.00 ,Anglia Motel,,
South Holland District Council,http://statistics.data.gov.uk/id/local-authority/32UF,Housing,Bed and Breakfast Accommodation (Homelessness Service),20/01/2022,30010042,630.00 ,Anglia Motel,,
South Holland District Council,http://statistics.data.gov.uk/id/local-authority/32UF,Housing,Bed and Breakfast Accommodation (Homelessness Service),20/01/2022,30010043,490.00 ,Anglia Motel,,
South Holland District Council,http://statistics.data.gov.uk/id/local-authority/32UF,Housing,Bed and Breakfast Accommodation (Homelessness Service),20/01/2022,30010045,490.00 ,Anglia Motel,,
South Holland District Council,http://statistics.data.gov.uk/id/local-authority/32UF,Housing,Bed and Breakfast Accommodation (Homelessness Service),20/01/2022,30010047,490.00 ,Anglia Motel,,
South Holland District Council,http://statistics.data.gov.uk/id/local-authority/32UF,Housing,Bed and Breakfast Accommodation (Homelessness Service),20/01/2022,30010048,490.00 ,Anglia Motel,,
South Holland District Council,http://statistics.data.gov.uk/id/local-authority/32UF,Housing,Bed and Breakfast Accommodation (Homelessness Service),20/01/2022,30010050,836.50 ,Anglia Motel,,
South Holland District Council,http://statistics.data.gov.uk/id/local-authority/32UF,Housing,Bed and Breakfast Accommodation (Homelessness Service),20/01/2022,30010053,490.00 ,Anglia Motel,,
South Holland District Council,http://statistics.data.gov.uk/id/local-authority/32UF,Housing,Bed and Breakfast Accommodation (Homelessness Service),20/01/2022,30010054,490.00 ,Anglia Motel,,
South Holland District Council,http://statistics.data.gov.uk/id/local-authority/32UF,Housing,Bed and Breakfast Accommodation (Homelessness Service),20/01/2022,30010437,875.00 ,Anglia Motel,,
South Holland District Council,http://statistics.data.gov.uk/id/local-authority/32UF,Housing,Bed and Breakfast Accommodation (Homelessness Service),20/01/2022,30010438,875.00 ,Anglia Motel,,
South Holland District Council,http://statistics.data.gov.uk/id/local-authority/32UF,Housing,Bed and Breakfast Accommodation (Homelessness Service),20/01/2022,30010440,750.00 ,Anglia Motel,,
South Holland District Council,http://statistics.data.gov.uk/id/local-authority/32UF,Housing,Bed and Breakfast Accommodation (Homelessness Service),20/01/2022,30010443,490.00 ,Anglia Motel,,
South Holland District Council,http://statistics.data.gov.uk/id/local-authority/32UF,Housing,Bed and Breakfast Accommodation (Homelessness Service),20/01/2022,30010444,525.00 ,Anglia Motel,,
South Holland District Council,http://statistics.data.gov.uk/id/local-authority/32UF,Housing,Bed and Breakfast Accommodation (Homelessness Service),20/01/2022,30010454,490.00 ,Anglia Motel,,
South Holland District Council,http://statistics.data.gov.uk/id/local-authority/32UF,Housing,Bed and Breakfast Accommodation (Homelessness Service),20/01/2022,30010484,490.00 ,Anglia Motel,,
South Holland District Council,http://statistics.data.gov.uk/id/local-authority/32UF,Housing,Bed and Breakfast Accommodation (Homelessness Service),20/01/2022,30010485,490.89 ,Anglia Motel,,
South Holland District Council,http://statistics.data.gov.uk/id/local-authority/32UF,Housing,Bed and Breakfast Accommodation (Homelessness Service),20/01/2022,30010486,490.00 ,Anglia Motel,,
South Holland District Council,http://statistics.data.gov.uk/id/local-authority/32UF,Housing,Bed and Breakfast Accommodation (Homelessness Service),20/01/2022,30010487,490.00 ,Anglia Motel,,
South Holland District Council,http://statistics.data.gov.uk/id/local-authority/32UF,Housing,Bed and Breakfast Accommodation (Homelessness Service),20/01/2022,30010493,490.00 ,Anglia Motel,,
South Holland District Council,http://statistics.data.gov.uk/id/local-authority/32UF,Housing,Bed and Breakfast Accommodation (Homelessness Service),20/01/2022,30010499,525.00 ,Anglia Motel,,
South Holland District Council,http://statistics.data.gov.uk/id/local-authority/32UF,Housing,Computer Software Licence Costs,27/01/2022,30010392,"9,995.00 ",MRI Housing Partners,,
South Holland District Council,http://statistics.data.gov.uk/id/local-authority/32UF,Housing,Grants and Contributions to Outside Bodies - No Service Received,18/01/2022,30009886,500.00 ,Spalding Taxis Ltd,,
South Holland District Council,http://statistics.data.gov.uk/id/local-authority/32UF,Housing,Grants and Contributions to Outside Bodies - No Service Received,18/01/2022,30010318,"12,329.78 ",Brothertoft Build Ltd,,
South Holland District Council,http://statistics.data.gov.uk/id/local-authority/32UF,Housing,Grants and Contributions to Outside Bodies - No Service Received,18/01/2022,30010333,"5,814.20 ",Brothertoft Build Ltd,,
South Holland District Council,http://statistics.data.gov.uk/id/local-authority/32UF,Housing,Grants and Contributions to Outside Bodies - No Service Received,18/01/2022,30010409,"6,242.19 ",M P L Home Improvements,,
South Holland District Council,http://statistics.data.gov.uk/id/local-authority/32UF,Housing,Grants and Contributions to Outside Bodies - No Service Received,20/01/2022,30010424,"20,000.00 ",R E Lacey Building & Joinery,,
South Holland District Council,http://statistics.data.gov.uk/id/local-authority/32UF,Housing,Grants and Contributions to Outside Bodies - No Service Received,18/01/2022,30010468,620.00 ,DGG Property Consultants Ltd,,
South Holland District Council,http://statistics.data.gov.uk/id/local-authority/32UF,Housing,Grants and Contributions to Outside Bodies - No Service Received,18/01/2022,30010617,670.00 ,Property Panda Lettings Ltd,,
South Holland District Council,http://statistics.data.gov.uk/id/local-authority/32UF,Housing,Grants and Contributions to Outside Bodies - No Service Received,18/01/2022,30010659,"5,747.50 ",Citizens Advice South Lincolnshire,,
South Holland District Council,http://statistics.data.gov.uk/id/local-authority/32UF,Housing,Grants and Contributions to Outside Bodies - No Service Received,01/02/2022,30010947,"6,412.20 ",Lincolnshire Bathrooms and Wetrooms,,
South Holland District Council,http://statistics.data.gov.uk/id/local-authority/32UF,Housing,Other Miscellaneous Expenses,25/01/2022,30010347,"10,092.87 ",Broadgate Homes Ltd,,
South Holland District Council,http://statistics.data.gov.uk/id/local-authority/32UF,Housing,Other Miscellaneous Expenses,25/01/2022,30010354,"10,767.63 ",Broadgate Homes Ltd,,
South Holland District Council,http://statistics.data.gov.uk/id/local-authority/32UF,Housing,Other Miscellaneous Expenses,11/01/2022,30010357,"31,721.43 ",Broadgate Builders (Spalding) Ltd,,
South Holland District Council,http://statistics.data.gov.uk/id/local-authority/32UF,Housing,Other Miscellaneous Expenses,25/01/2022,30010359,"13,559.63 ",Broadgate Homes Ltd,,
South Holland District Council,http://statistics.data.gov.uk/id/local-authority/32UF,Housing,Other Miscellaneous Expenses,13/01/2022,30010465,"17,640.61 ",Broadgate Builders (Spalding) Ltd,,
South Holland District Council,http://statistics.data.gov.uk/id/local-authority/32UF,Housing,Professional and Contractors Fees,27/01/2022,30010293,295.00 ,Language Line Ltd,,
South Holland District Council,http://statistics.data.gov.uk/id/local-authority/32UF,Housing,Professional Fees,11/01/2022,30009926,"3,465.00 ",Platform Housing Ltd,,
South Holland District Council,http://statistics.data.gov.uk/id/local-authority/32UF,Housing,Professional Fees,11/01/2022,30010010,"3,362.50 ",Framework Architecture  Urban Design Ltd,,
South Holland District Council,http://statistics.data.gov.uk/id/local-authority/32UF,Housing,Purchase of Buildings,11/01/2022,30007967,"2,500.00 ",Ashley King Development,,
South Holland District Council,http://statistics.data.gov.uk/id/local-authority/32UF,Housing,Telephones,18/01/2022,30010618,"2,532.27 ",Vodafone Ltd Corporate,,
South Holland District Council,http://statistics.data.gov.uk/id/local-authority/32UF,Housing,Works to Buildings (Main Contractor),11/01/2022,30009913,"34,010.12 ",D Brown Building Contractors Ltd,,
South Holland District Council,http://statistics.data.gov.uk/id/local-authority/32UF,Housing Landlord Manager,Agency Staff,06/01/2022,30009754,"1,083.95 ",James Andrew,,
South Holland District Council,http://statistics.data.gov.uk/id/local-authority/32UF,Housing Landlord Manager,Agency Staff,18/01/2022,30009823,884.14 ,Niyaa People,,
South Holland District Council,http://statistics.data.gov.uk/id/local-authority/32UF,Housing Landlord Manager,Agency Staff,06/01/2022,30009862,892.50 ,James Andrew,,
South Holland District Council,http://statistics.data.gov.uk/id/local-authority/32UF,Housing Landlord Manager,Agency Staff,27/01/2022,30010286,885.86 ,Niyaa People,,
South Holland District Council,http://statistics.data.gov.uk/id/local-authority/32UF,Housing Landlord Manager,Agency Staff,27/01/2022,30010386,650.50 ,Niyaa People,,
South Holland District Council,http://statistics.data.gov.uk/id/local-authority/32UF,Housing Landlord Manager,Agency Staff,18/01/2022,30010629,875.00 ,James Andrew,,
South Holland District Council,http://statistics.data.gov.uk/id/local-authority/32UF,Housing Landlord Manager,Agency Staff,27/01/2022,30010690,487.87 ,Niyaa People,,
South Holland District Council,http://statistics.data.gov.uk/id/local-authority/32UF,Housing Landlord Manager,Agency Staff,18/01/2022,30010776,145.53 ,Integrity Plus Ltd,,
South Holland District Council,http://statistics.data.gov.uk/id/local-authority/32UF,Housing Landlord Manager,Agency Staff,18/01/2022,30010778,127.05 ,Integrity Plus Ltd,,
South Holland District Council,http://statistics.data.gov.uk/id/local-authority/32UF,Housing Landlord Manager,Agency Staff,27/01/2022,30010883,813.12 ,Niyaa People,,
South Holland District Council,http://statistics.data.gov.uk/id/local-authority/32UF,Housing Landlord Manager,Agency Staff,25/01/2022,30010990,170.94 ,Integrity Plus Ltd,,
South Holland District Council,http://statistics.data.gov.uk/id/local-authority/32UF,Housing Landlord Manager,Agency Staff,03/02/2022,30011117,813.12 ,Niyaa People,,
South Holland District Council,http://statistics.data.gov.uk/id/local-authority/32UF,Housing Landlord Manager,Asbestos Works HRA,18/01/2022,30010295,"7,800.00 ",Rilmac Insulation Ltd,,
South Holland District Council,http://statistics.data.gov.uk/id/local-authority/32UF,Housing Landlord Manager,Asbestos Works HRA,11/01/2022,30010307,"14,000.00 ",Rilmac Insulation Ltd,,
South Holland District Council,http://statistics.data.gov.uk/id/local-authority/32UF,Housing Landlord Manager,Asbestos Works HRA,18/01/2022,30010700,"14,800.00 ",Rilmac Insulation Ltd,,
South Holland District Council,http://statistics.data.gov.uk/id/local-authority/32UF,Housing Landlord Manager,Buildings Maintenance - Programmed,11/01/2022,30009960,438.02 ,KLS Care,,
South Holland District Council,http://statistics.data.gov.uk/id/local-authority/32UF,Housing Landlord Manager,Buildings Maintenance - Programmed,20/01/2022,30010419,"3,823.82 ",GBSG Ltd,,
South Holland District Council,http://statistics.data.gov.uk/id/local-authority/32UF,Housing Landlord Manager,Buildings Maintenance - Programmed,20/01/2022,30010626,"3,823.82 ",GBSG Ltd,,
South Holland District Council,http://statistics.data.gov.uk/id/local-authority/32UF,Housing Landlord Manager,Buildings Maintenance - Responsive,13/01/2022,30009793,973.38 ,H20 Nationwide Limited,,
South Holland District Council,http://statistics.data.gov.uk/id/local-authority/32UF,Housing Landlord Manager,Buildings Maintenance - Responsive,11/01/2022,30009898,"1,845.00 ",Boors Ltd,,
South Holland District Council,http://statistics.data.gov.uk/id/local-authority/32UF,Housing Landlord Manager,Buildings Maintenance - Responsive,11/01/2022,30009914,"1,850.00 ",Boors Ltd,,
South Holland District Council,http://statistics.data.gov.uk/id/local-authority/32UF,Housing Landlord Manager,Buildings Maintenance - Responsive,18/01/2022,30010296,680.00 ,South Lincs Consulting Ltd,,
South Holland District Council,http://statistics.data.gov.uk/id/local-authority/32UF,Housing Landlord Manager,Buildings Maintenance - Responsive,11/01/2022,30010298,"1,438.00 ",M and R Glass and Glazing Ltd,,
South Holland District Council,http://statistics.data.gov.uk/id/local-authority/32UF,Housing Landlord Manager,Buildings Maintenance - Responsive,11/01/2022,30010301,"5,759.00 ",M and R Glass and Glazing Ltd,,
South Holland District Council,http://statistics.data.gov.uk/id/local-authority/32UF,Housing Landlord Manager,Buildings Maintenance - Responsive,11/01/2022,30010314,"3,112.00 ",M and R Glass and Glazing Ltd,,
South Holland District Council,http://statistics.data.gov.uk/id/local-authority/32UF,Housing Landlord Manager,Buildings Maintenance - Responsive,13/01/2022,30010447,990.00 ,L Fragale,,
South Holland District Council,http://statistics.data.gov.uk/id/local-authority/32UF,Housing Landlord Manager,Buildings Maintenance - Responsive,18/01/2022,30010636,675.00 ,Kev Forman Roofing,,
South Holland District Council,http://statistics.data.gov.uk/id/local-authority/32UF,Housing Landlord Manager,Buildings Maintenance - Responsive,18/01/2022,30010789,973.38 ,H20 Nationwide Limited,,
South Holland District Council,http://statistics.data.gov.uk/id/local-authority/32UF,Housing Landlord Manager,Buildings Maintenance - Responsive,25/01/2022,30010962,852.57 ,Stuart Taplin Plumbing and Build Maint,,
South Holland District Council,http://statistics.data.gov.uk/id/local-authority/32UF,Housing Landlord Manager,Buildings Maintenance - Responsive,25/01/2022,30010963,965.00 ,Barry Disdels Landscapes and Maintenance,,
South Holland District Council,http://statistics.data.gov.uk/id/local-authority/32UF,Housing Landlord Manager,Buildings Maintenance - Responsive,10/02/2022,30011009,516.71 ,Aaron Services Ltd,,
South Holland District Council,http://statistics.data.gov.uk/id/local-authority/32UF,Housing Landlord Manager,Buildings Maintenance - Responsive,27/01/2022,30011153,989.00 ,L Fragale,,
South Holland District Council,http://statistics.data.gov.uk/id/local-authority/32UF,Housing Landlord Manager,Buildings Maintenance - Responsive,27/01/2022,30011155,510.00 ,L Fragale,,
South Holland District Council,http://statistics.data.gov.uk/id/local-authority/32UF,Housing Landlord Manager,Cesspool Emptying,10/02/2022,30011056,"2,475.00 ",Dalrod Drainage Solutions,,
South Holland District Council,http://statistics.data.gov.uk/id/local-authority/32UF,Housing Landlord Manager,Computer Software Licence Costs,20/01/2022,30009824,"2,175.53 ",Automico Ltd,,
South Holland District Council,http://statistics.data.gov.uk/id/local-authority/32UF,Housing Landlord Manager,Damp Proofing,03/02/2022,30010772,"3,450.00 ",British Waterproofing,,
South Holland District Council,http://statistics.data.gov.uk/id/local-authority/32UF,Housing Landlord Manager,Drain Repairs,10/02/2022,30011024,"4,080.00 ",Dalrod Drainage Solutions,,
South Holland District Council,http://statistics.data.gov.uk/id/local-authority/32UF,Housing Landlord Manager,Drain Repairs,10/02/2022,30011078,"5,312.50 ",Dalrod Drainage Solutions,,
South Holland District Council,http://statistics.data.gov.uk/id/local-authority/32UF,Housing Landlord Manager,Electricity,11/01/2022,30010169,730.44 ,Total Energies,,
South Holland District Council,http://statistics.data.gov.uk/id/local-authority/32UF,Housing Landlord Manager,Fuel and Oil,06/01/2022,30009878,605.33 ,C H Jones Ltd,,
South Holland District Council,http://statistics.data.gov.uk/id/local-authority/32UF,Housing Landlord Manager,Fuel and Oil,11/01/2022,30010277,160.47 ,C H Jones Ltd,,
South Holland District Council,http://statistics.data.gov.uk/id/local-authority/32UF,Housing Landlord Manager,Fuel and Oil,13/01/2022,30010477,586.92 ,C H Jones Ltd,,
South Holland District Council,http://statistics.data.gov.uk/id/local-authority/32UF,Housing Landlord Manager,Fuel and Oil,20/01/2022,30010909,700.07 ,C H Jones Ltd,,
South Holland District Council,http://statistics.data.gov.uk/id/local-authority/32UF,Housing Landlord Manager,Furniture and Equipment,06/01/2022,30009804,"1,157.80 ",Veolia Es UK Ltd,,
South Holland District Council,http://statistics.data.gov.uk/id/local-authority/32UF,Housing Landlord Manager,Furniture and Equipment,11/01/2022,30009897,837.50 ,BT Blinds,,
South Holland District Council,http://statistics.data.gov.uk/id/local-authority/32UF,Housing Landlord Manager,Furniture and Equipment,03/02/2022,30010351,"1,387.90 ",Banner Group T A Spectrum,,
South Holland District Council,http://statistics.data.gov.uk/id/local-authority/32UF,Housing Landlord Manager,Furniture and Equipment,27/01/2022,30010543,735.67 ,Veolia Es UK Ltd,,
South Holland District Council,http://statistics.data.gov.uk/id/local-authority/32UF,Housing Landlord Manager,Furniture and Equipment,18/01/2022,30010662,660.00 ,Perfect Move,,
South Holland District Council,http://statistics.data.gov.uk/id/local-authority/32UF,Housing Landlord Manager,Furniture and Equipment,08/02/2022,30010696,"12,651.43 ",Tunstall Healthcare UK Ltd,,
South Holland District Council,http://statistics.data.gov.uk/id/local-authority/32UF,Housing Landlord Manager,Furniture and Equipment,01/02/2022,30010993,992.25 ,Stannah,,
South Holland District Council,http://statistics.data.gov.uk/id/local-authority/32UF,Housing Landlord Manager,Furniture and Equipment,17/02/2022,30011179,"1,910.56 ",Stannah,,
South Holland District Council,http://statistics.data.gov.uk/id/local-authority/32UF,Housing Landlord Manager,Furniture and Equipment,08/02/2022,30011197,512.75 ,Tunstall Healthcare UK Ltd,,
South Holland District Council,http://statistics.data.gov.uk/id/local-authority/32UF,Housing Landlord Manager,Gas Servicing,03/02/2022,30010683,"22,279.29 ",Aaron Services Ltd,,
South Holland District Council,http://statistics.data.gov.uk/id/local-authority/32UF,Housing Landlord Manager,Gas Servicing,10/02/2022,30011008,"1,335.00 ",Aaron Services Ltd,,
South Holland District Council,http://statistics.data.gov.uk/id/local-authority/32UF,Housing Landlord Manager,Gas Servicing,10/02/2022,30011052,"21,187.21 ",Aaron Services Ltd,,
South Holland District Council,http://statistics.data.gov.uk/id/local-authority/32UF,Housing Landlord Manager,Grounds Maintenance Contract (External),18/01/2022,30008896,650.00 ,Greenscape Tree Safe Ltd,,
South Holland District Council,http://statistics.data.gov.uk/id/local-authority/32UF,Housing Landlord Manager,Grounds Maintenance Contract (External),11/01/2022,30009966,450.00 ,Greenscape Tree Safe Ltd,,
South Holland District Council,http://statistics.data.gov.uk/id/local-authority/32UF,Housing Landlord Manager,Grounds Maintenance Contract (External),11/01/2022,30009967,"2,450.00 ",Greenscape Tree Safe Ltd,,
South Holland District Council,http://statistics.data.gov.uk/id/local-authority/32UF,Housing Landlord Manager,Grounds Maintenance Contract (External),11/01/2022,30010071,450.00 ,Greenscape Tree Safe Ltd,,
South Holland District Council,http://statistics.data.gov.uk/id/local-authority/32UF,Housing Landlord Manager,Legal Fees,27/01/2022,30011041,"1,634.00 ",Capsticks Solicitors LLP,,
South Holland District Council,http://statistics.data.gov.uk/id/local-authority/32UF,Housing Landlord Manager,Maintenance of Footpaths and Roadways,20/01/2022,30010650,"4,855.91 ",C G Godfrey Ltd,,
South Holland District Council,http://statistics.data.gov.uk/id/local-authority/32UF,Housing Landlord Manager,Maintenance of Footpaths and Roadways,20/01/2022,30010651,"1,686.87 ",C G Godfrey Ltd,,
South Holland District Council,http://statistics.data.gov.uk/id/local-authority/32UF,Housing Landlord Manager,Materials and Consumables,27/01/2022,30008621,836.00 ,JML Hardware Ltd,,
South Holland District Council,http://statistics.data.gov.uk/id/local-authority/32UF,Housing Landlord Manager,Materials and Consumables,06/01/2022,30009746,"2,298.00 ",Trent Fireplaces,,
South Holland District Council,http://statistics.data.gov.uk/id/local-authority/32UF,Housing Landlord Manager,Materials and Consumables,11/01/2022,30009784,"4,515.54 ",Gibbs and Dandy,,
South Holland District Council,http://statistics.data.gov.uk/id/local-authority/32UF,Housing Landlord Manager,Materials and Consumables,11/01/2022,30009790,"4,605.16 ",Gibbs and Dandy,,
South Holland District Council,http://statistics.data.gov.uk/id/local-authority/32UF,Housing Landlord Manager,Materials and Consumables,11/01/2022,30009791,"4,266.46 ",Gibbs and Dandy,,
South Holland District Council,http://statistics.data.gov.uk/id/local-authority/32UF,Housing Landlord Manager,Materials and Consumables,06/01/2022,30009828,"4,666.11 ",Gibbs and Dandy,,
South Holland District Council,http://statistics.data.gov.uk/id/local-authority/32UF,Housing Landlord Manager,Materials and Consumables,11/01/2022,30010103,688.32 ,Grafton Merchanting GB Ltd,,
South Holland District Council,http://statistics.data.gov.uk/id/local-authority/32UF,Housing Landlord Manager,Materials and Consumables,13/01/2022,30010343,"3,803.39 ",Gibbs and Dandy,,
South Holland District Council,http://statistics.data.gov.uk/id/local-authority/32UF,Housing Landlord Manager,Materials and Consumables,13/01/2022,30010372,"3,475.01 ",Gibbs and Dandy,,
South Holland District Council,http://statistics.data.gov.uk/id/local-authority/32UF,Housing Landlord Manager,Materials and Consumables,13/01/2022,30010378,432.02 ,Kirby and Wells Ltd T A Kawstore,,
South Holland District Council,http://statistics.data.gov.uk/id/local-authority/32UF,Housing Landlord Manager,Materials and Consumables,25/01/2022,30010764,469.89 ,Howdens Joinery Co. (Acc 1000118018),,
South Holland District Council,http://statistics.data.gov.uk/id/local-authority/32UF,Housing Landlord Manager,Materials and Consumables,18/01/2022,30010814,690.90 ,Brian Ayres Roofing Supplies Ltd,,
South Holland District Council,http://statistics.data.gov.uk/id/local-authority/32UF,Housing Landlord Manager,Materials and Consumables,18/01/2022,30010832,"3,717.70 ",Gibbs and Dandy,,
South Holland District Council,http://statistics.data.gov.uk/id/local-authority/32UF,Housing Landlord Manager,Materials and Consumables,01/02/2022,30011199,"4,399.98 ",Gibbs and Dandy,,
South Holland District Council,http://statistics.data.gov.uk/id/local-authority/32UF,Housing Landlord Manager,Professional and Contractors Fees,25/01/2022,30009759,"2,475.00 ",NPS Peterborough Ltd,,
South Holland District Council,http://statistics.data.gov.uk/id/local-authority/32UF,Housing Landlord Manager,Professional and Contractors Fees,06/01/2022,30009888,908.50 ,Morgan Lambert Ltd 2018,,
South Holland District Council,http://statistics.data.gov.uk/id/local-authority/32UF,Housing Landlord Manager,Professional and Contractors Fees,11/01/2022,30009923,650.00 ,Environtec Limited,,
South Holland District Council,http://statistics.data.gov.uk/id/local-authority/32UF,Housing Landlord Manager,Professional and Contractors Fees,20/01/2022,30010064,"1,375.00 ",PF Firesoft Limited,,
South Holland District Council,http://statistics.data.gov.uk/id/local-authority/32UF,Housing Landlord Manager,Professional and Contractors Fees,20/01/2022,30010068,"1,455.00 ",PF Firesoft Limited,,
South Holland District Council,http://statistics.data.gov.uk/id/local-authority/32UF,Housing Landlord Manager,Professional and Contractors Fees,27/01/2022,30010293,295.00 ,Language Line Ltd,,
,,Housing Landlord Manager,Professional and Contractors Fees,27/01/2022,30010411,855.00 ,Environtec Limited,,
,,Housing Landlord Manager,Professional and Contractors Fees,27/01/2022,30010420,948.00 ,Morgan Lambert Ltd 2018,,
,,Housing Landlord Manager,Professional and Contractors Fees,27/01/2022,30010488,500.00 ,Focus Consultants 2010 LLP,,
,,Housing Landlord Manager,Professional and Contractors Fees,27/01/2022,30010490,500.00 ,Focus Consultants 2010 LLP,,
,,Housing Landlord Manager,Professional and Contractors Fees,27/01/2022,30010491,500.00 ,Focus Consultants 2010 LLP,,
,,Housing Landlord Manager,Professional and Contractors Fees,18/01/2022,30010783,829.50 ,Morgan Lambert Ltd 2018,,
,,Housing Landlord Manager,Purchase of Software Licences (Intangible),18/01/2022,30010840,"23,954.22 ",Marshall Peugeot Peterborough,,
,,Housing Landlord Manager,Purchase of Software Licences (Intangible),18/01/2022,30010841,"23,718.42 ",Marshall Peugeot Peterborough,,
,,Housing Landlord Manager,Roof Repairs,11/01/2022,30009935,600.00 ,Kev Forman Roofing,,
,,Housing Landlord Manager,Roof Repairs,11/01/2022,30009951,890.00 ,Kev Forman Roofing,,
,,Housing Landlord Manager,Roof Repairs,11/01/2022,30009952,"1,040.00 ",Kev Forman Roofing,,
,,Housing Landlord Manager,Roof Repairs,11/01/2022,30009953,720.00 ,Kev Forman Roofing,,
,,Housing Landlord Manager,Roof Repairs,25/01/2022,30010634,680.00 ,Kev Forman Roofing,,
,,Housing Landlord Manager,Roof Repairs,18/01/2022,30010635,"1,210.00 ",Kev Forman Roofing,,
,,Housing Landlord Manager,Roof Repairs,01/02/2022,30011143,950.00 ,Kev Forman Roofing,,
,,Housing Landlord Manager,Roof Repairs,01/02/2022,30011144,"1,190.00 ",Kev Forman Roofing,,
,,Housing Landlord Manager,Roof Repairs,01/02/2022,30011145,730.00 ,Kev Forman Roofing,,
,,Housing Landlord Manager,Roof Repairs,01/02/2022,30011174,"1,290.00 ",Kev Forman Roofing,,
,,Housing Landlord Manager,Sewerage Treatment Works,27/01/2022,30011049,"24,718.07 ",C G Godfrey Ltd,,
,,Housing Landlord Manager,Solid Fuel Servicing,03/02/2022,30010682,"1,599.60 ",Aaron Services Ltd,,
,,Housing Landlord Manager,Solid Fuel Servicing,10/02/2022,30011007,"2,935.66 ",Aaron Services Ltd,,
,,Housing Landlord Manager,Staff Training Expenses (Non-Payroll),06/01/2022,30009786,"1,440.00 ",ILX Group,,
,,Housing Landlord Manager,Void Repairs,06/01/2022,30009894,575.00 ,Boors Ltd,,
,,Housing Landlord Manager,Void Repairs,11/01/2022,30009915,"2,950.00 ",Boors Ltd,,
,,Housing Landlord Manager,Works to Buildings (Main Contractor),13/01/2022,30009877,"26,234.44 ",Aaron Services Ltd,,
,,Housing Landlord Manager,Works to Buildings (Main Contractor),20/01/2022,30009911,"4,615.03 ",Hodgson Sayers Ltd,,
,,Housing Landlord Manager,Works to Buildings (Main Contractor),11/01/2022,30010320,793.50 ,Bonsers Restoration Ltd,,
,,Housing Landlord Manager,Works to Buildings (Main Contractor),18/01/2022,30010451,"2,233.93 ",D Brown Building Contractors Ltd,,
,,Housing Landlord Manager,Works to Buildings (Main Contractor),18/01/2022,30010478,"24,492.08 ",D Brown Building Contractors Ltd,,
,,Housing Landlord Manager,Works to Buildings (Main Contractor),18/01/2022,30010483,"27,313.68 ",D Brown Building Contractors Ltd,,
,,Housing Landlord Manager,Works to Buildings (Main Contractor),01/02/2022,30010515,"64,329.60 ",Hodgson Sayers Ltd,,
,,Housing Landlord Manager,Works to Buildings (Main Contractor),01/02/2022,30010621,"17,958.12 ",Hodgson Sayers Ltd,,
,,Housing Landlord Manager,Works to Buildings (Main Contractor),18/01/2022,30010782,"7,148.66 ",Princebuild Ltd,,
,,Housing Landlord Manager,Works to Buildings (Main Contractor),18/01/2022,30010792,"13,000.00 ",R A Joinery,,
,,Housing Landlord Manager,Works to Buildings (Main Contractor),18/01/2022,30010800,"6,109.37 ",Lincolnshire Bathrooms and Wetrooms,,
,,Housing Landlord Manager,Works to Buildings (Main Contractor),01/02/2022,30010846,"5,722.31 ",Stuart Taplin Plumbing and Build Maint,,
,,Housing Landlord Manager,Works to Buildings (Main Contractor),25/01/2022,30011010,"12,306.61 ",D Brown Building Contractors Ltd,,
,,Housing Landlord Manager,Works to Buildings (Main Contractor),17/02/2022,30011178,"30,079.85 ",Aaron Services Ltd,,
,,HR,Other Income,06/01/2022,30009855,-27.71 ,Unison,,
,,HR,Other Income,01/02/2022,30011164,-27.71 ,Unison,,
,,HR,Staff Training Expenses (Non-Payroll),11/01/2022,30009821,"3,200.00 ",QA Ltd,,
,,HR,Staff Training Expenses (Non-Payroll),01/02/2022,30011186,"2,100.00 ",NTP Services,,
,,ICT and Customer Services,Computer Hardware Maintenance,20/01/2022,30010858,499.50 ,Multidata,,
,,ICT and Customer Services,Computer Software Licence Costs,27/01/2022,30010862,"1,250.00 ",Recite Me Ltd,,
,,ICT and Customer Services,External Printing and Design Costs,06/01/2022,30009785,"2,172.42 ",Public Sector Partnership Services Ltd,,
,,ICT and Customer Services,PSPS Non-Base Contract Costs,13/01/2022,30010345,"13,350.00 ",Public Sector Partnership Services Ltd,,
,,ICT and Customer Services,PSPS Non-Base Contract Costs,18/01/2022,30010679,"1,615.66 ",Public Sector Partnership Services Ltd,,
,,ICT and Customer Services,Telephones,11/01/2022,30009493,"1,909.92 ",Daisy Communications Ltd,,
,,ICT and Customer Services,Telephones,20/01/2022,30010344,"3,240.00 ",Vodafone Ltd Corporate,,
,,ICT and Customer Services,Telephones,27/01/2022,30010946,"1,838.70 ",Daisy Communications Ltd,,
,,ICT and Customer Services,Telephones,25/01/2022,30010975,468.75 ,Vodafone Ltd Corporate,,
,,ICT and Customer Services,Telephones,25/01/2022,30011088,468.75 ,Vodafone Ltd Corporate,,
,,ICT and Customer Services,Telephones,27/01/2022,30011135,"2,539.86 ",Vodafone Ltd Corporate,,
,,ICT and Customer Services,Telephones,27/01/2022,30011136,"2,517.30 ",Vodafone Ltd Corporate,,
,,ICT and Customer Services,Telephones,24/02/2022,30011158,"2,541.09 ",Vodafone Ltd Corporate,,
,,ICT and Customer Services,Telephones,24/02/2022,30011161,468.75 ,Vodafone Ltd Corporate,,
,,Planning,Agency - Vacant Post Cover,13/01/2022,30009750,"1,513.35 ",Vivid Resourcing,,
,,Planning,Agency - Vacant Post Cover,20/01/2022,30009755,"1,443.00 ",Vivid Resourcing,,
,,Planning,Agency - Vacant Post Cover,27/01/2022,30010316,"1,465.05 ",Vivid Resourcing,,
,,Planning,Agency - Vacant Post Cover,10/02/2022,30010825,"1,326.00 ",Vivid Resourcing,,
,,Planning,"Books, Magazines and Other Publications",04/01/2022,30009766,"3,792.00 ",Thomson Reuters Professional UK Ltd,,
,,Planning,Grants and Contributions to Outside Bodies - No Service Received,25/01/2022,30011105,"65,063.62 ",Crowland Parish Council,,
,,Public Protection,Fuel and Oil,20/01/2022,30010909,40.91 ,C H Jones Ltd,,
,,Public Protection,Furniture and Equipment,03/02/2022,30010317,461.00 ,Campbell Associates Ltd,,
,,Public Protection,Professional and Contractors Fees,06/01/2022,30009558,"1,036.00 ",The Oyster Partnership Ltd,,
,,Public Protection,Professional and Contractors Fees,13/01/2022,30009559,"1,369.00 ",The Oyster Partnership Ltd,,
,,Public Protection,Professional and Contractors Fees,06/01/2022,30009780,"1,722.67 ",Breckland Council,,
,,Public Protection,Professional and Contractors Fees,06/01/2022,30009875,962.49 ,Healthguard Limited,,
,,Public Protection,Professional and Contractors Fees,20/01/2022,30010015,"1,369.00 ",The Oyster Partnership Ltd,,
,,Public Protection,Professional and Contractors Fees,11/01/2022,30010129,"1,750.00 ",Robert Murphy Ta Keystone Consultants,,
,,Public Protection,Professional and Contractors Fees,27/01/2022,30010238,"1,369.00 ",The Oyster Partnership Ltd,,
,,Public Protection,Professional and Contractors Fees,03/02/2022,30010638,999.00 ,The Oyster Partnership Ltd,,
,,Public Protection,Professional and Contractors Fees,10/02/2022,30010912,"1,258.00 ",The Oyster Partnership Ltd,,
,,Public Protection,Professional and Contractors Fees,17/02/2022,30011122,"1,369.00 ",The Oyster Partnership Ltd,,
,,Public Protection,Public Courses and Workshops,03/02/2022,30010819,"1,080.00 ",Highfield Awarding Body For Compliance,,
,,Spalding Specials,Buildings Maintenance - Programmed,11/01/2022,30009792,121.26 ,H20 Nationwide Limited,,
,,Spalding Specials,Buildings Maintenance - Responsive,06/01/2022,30009573,651.92 ,H20 Nationwide Limited,,
,,Spalding Specials,Buildings Maintenance - Responsive,06/01/2022,30009574,651.92 ,H20 Nationwide Limited,,
,,Town Centre Improvement Plan,Agency Staff,04/01/2022,30009753,546.12 ,Encore Personnel Services Ltd,,
,,Town Centre Improvement Plan,Agency Staff,11/01/2022,30010279,491.36 ,Encore Personnel Services Ltd,,
,,Town Centre Improvement Plan,Agency Staff,20/01/2022,30010881,586.08 ,Integrity Plus Ltd,,
,,Town Centre Improvement Plan,Agency Staff,20/01/2022,30010926,626.78 ,247 Personnel Ltd,,
,,Town Centre Improvement Plan,Agency Staff,25/01/2022,30011101,468.86 ,Integrity Plus Ltd,,
,,Town Centre Improvement Plan,Furniture and Equipment,06/01/2022,30009782,"1,894.00 ",Broxap Ltd,,
,,Town Centre Improvement Plan,Furniture and Equipment,10/02/2022,30010969,460.00 ,Amethyst Horticulture Ltd,,
,,Town Centre Improvement Plan,Other Miscellaneous Expenses,11/01/2022,30009927,"2,308.20 ",University of Lincoln Transported,,
,,Town Centre Improvement Plan,Other Miscellaneous Expenses,11/01/2022,30009948,"1,740.00 ",Popcorn Media,,
,,Town Centre Improvement Plan,Professional and Contractors Fees,11/01/2022,30009944,"3,000.00 ",Holb Regeneration Comm Interest Company,,
